fUSD/lending_fUSD_20260329
["ID","MTS","AMOUNT","RATE_DAILY","PERIOD"]
[419046172,1774807846423,-629.043,0.00015029,2]
[419046173,1774807846432,-784.86,0.00015041,2]
[419046174,1774807846442,-2910.72,0.00015068,2]
[419046175,1774807846451,-900.0,0.00015068,2]
[419046176,1774807846461,-500.16463397,0.000151,2]
[419046177,1774807846470,-1602.93,0.000151,2]
[419046178,1774807846480,-1000.0,0.00015195,2]
[419046179,1774807846489,-22994.12,0.000152,2]
[419046180,1774807846499,-4789.28,0.000152,2]
[419046181,1774807846508,-4678.52,0.000152,2]
[419046182,1774807846518,-4373.32,0.000152,2]
[419046183,1774807846527,-3286.49,0.000152,2]
[419046184,1774807846537,-350.0,0.00015203,2]
[419046185,1774807846547,-10000.0,0.00015205,2]
[419046186,1774807846556,-1000.0,0.0001526,2]
[419046187,1774807846566,-1000.0,0.00015275,2]
[419046188,1774807846575,-1000.0,0.00015283,2]
[419046189,1774807846585,-1000.0,0.00015294,2]
[419046190,1774807846594,-784.86,0.00015315,2]
[419046191,1774807846604,-1371.28011341,0.00015332,2]
[419046192,1774807846614,-547.59777409,0.00015332,2]
[419046193,1774807846624,-2000.0,0.00015342,2]
[419046194,1774807846633,-510.44418561,0.00015342,2]
[419046195,1774807846643,-2000.0,0.00015342,2]
[419046196,1774807846652,-2083.85118063,0.00015342,2]
[419046197,1774807846662,-2000.0,0.00015342,2]
[419046198,1774807846672,-1500.0,0.00015342,2]
[419046199,1774807846681,-471.18842002,0.00015342,2]
[419046200,1774807846691,-2000.0,0.00015342,2]
[419046201,1774807846701,-2000.0,0.00015342,2]
[419046202,1774807846711,-1725.66563804,0.00015342,2]
[419046203,1774807846721,-1000.0,0.00015343,2]
[419046204,1774807846731,-1000.0,0.00015354,2]
[419046205,1774807846740,-1000.0,0.00015387,2]
[419046206,1774807846749,-1252.0,0.00015389,2]
[419046207,1774807846759,-1000.0,0.00015393,2]
[419046208,1774807846768,-1000.0,0.00015397,2]
[419046209,1774807846778,-161.0,0.000154,2]
[419046210,1774807846787,-1000.0,0.00015411,2]
[419046211,1774807846797,-1000.0,0.00015418,2]
[419046212,1774807847088,-1000.0,0.00015419,2]
[419046213,1774807847100,-1000.0,0.00015424,2]
[419046214,1774807847112,-1000.0,0.00015425,2]
[419046215,1774807847122,-1000.0,0.00015429,2]
[419046216,1774807847133,-2599.98,0.00015436,30]
[419046217,1774807847143,-1000.0,0.00015438,2]
[419046218,1774807847154,-151.0,0.00015443,5]
[419046219,1774807847164,-1000.0,0.00015444,2]
[419046220,1774807847173,-1000.0,0.00015446,2]
[419046221,1774807847183,-1000.0,0.00015453,2]
[419046222,1774807847192,-2000.0,0.00015457,2]
[419046223,1774807847203,-2000.0,0.00015457,2]
[419046224,1774807847212,-2000.0,0.00015457,2]
[419046225,1774807847221,-2000.0,0.00015457,2]
[419046226,1774807847231,-2000.0,0.00015457,2]
[419046227,1774807847240,-2000.0,0.00015457,2]
[419046228,1774807847250,-2000.0,0.00015457,2]
[419046229,1774807847259,-2000.0,0.00015457,2]
[419046230,1774807847270,-2000.0,0.00015457,2]
[419046231,1774807847279,-2000.0,0.00015457,2]
[419046232,1774807847289,-150.0,0.00015462,2]
[419046233,1774807847299,-1000.0,0.00015465,2]
[419046234,1774807847308,-1000.0,0.00015486,2]
[419046235,1774807847318,-1000.0,0.00015489,2]
[419046236,1774807847328,-1000.0,0.0001549,2]
[419046237,1774807847338,-1100.0,0.000155,5]
[419046238,1774807847347,-300.0,0.000155,5]
[419046239,1774807847357,-2003.48418562,0.000155,3]
[419046240,1774807847368,-1000.0,0.00015504,2]
[419046241,1774807847378,-1000.0,0.00015512,2]
[419046242,1774807847388,-4609.0,0.00015518,2]
[419046243,1774807847398,-1000.0,0.00015523,2]
[419046244,1774807847408,-1000.0,0.00015534,2]
[419046245,1774807847418,-1000.0,0.00015539,2]
[419046246,1774807847427,-1000.0,0.00015546,2]
[419046247,1774807847437,-1000.0,0.00015554,2]
[419046248,1774807847447,-1000.0,0.00015555,2]
[419046249,1774807847463,-1000.0,0.00015561,2]
[419046250,1774807847474,-1000.0,0.0001557,2]
[419046251,1774807847485,-888.83,0.00015589,2]
[419046252,1774807847495,-1000.0,0.00015597,2]
[419046253,1774807847506,-500.0,0.00015599,2]
[419046254,1774807847516,-500.0,0.00015599,2]
[419046255,1774807847527,-1100.0,0.000156,5]
[419046256,1774807847537,-300.0,0.000156,5]
[419046257,1774807847547,-1000.0,0.00015602,2]
[419046258,1774807847558,-1000.0,0.00015606,2]
[419046259,1774807847569,-1000.0,0.00015607,2]
[419046260,1774807847579,-1000.0,0.0001561,2]
[419046261,1774807847590,-1000.0,0.00015619,2]
[419046262,1774807847600,-1000.0,0.00015621,2]
[419046263,1774807847611,-1000.0,0.00015621,2]
[419046264,1774807847621,-1000.0,0.00015628,2]
[419046265,1774807847631,-1000.0,0.0001563,2]
[419046266,1774807847642,-150.0,0.00015632,2]
[419046267,1774807847653,-2000.0,0.00015632,2]
[419046268,1774807847663,-2000.0,0.00015632,2]
[419046269,1774807847674,-2000.0,0.00015632,2]
[419046270,1774807847684,-2000.0,0.00015632,2]
[419046271,1774807847694,-2000.0,0.00015632,2]
[419046272,1774807847704,-2000.0,0.00015632,2]
[419046273,1774807847715,-2000.0,0.00015632,2]
[419046274,1774807847725,-2000.0,0.00015632,2]
[419046275,1774807847735,-2000.0,0.00015632,2]
[419046276,1774807847746,-2000.0,0.00015632,2]
[419046277,1774807847756,-732.73812256,0.00015634,2]
[419046278,1774807847767,-2807.0,0.0001564,2]
[419046279,1774807847777,-2000.0,0.00015645,2]
[419046280,1774807847787,-2000.0,0.00015645,2]
[419046281,1774807847797,-2000.0,0.00015645,2]
[419046282,1774807847808,-2000.0,0.00015645,2]
[419046283,1774807847818,-2000.0,0.00015645,2]
[419046284,1774807847829,-2000.0,0.00015645,2]
[419046285,1774807847839,-2000.0,0.00015645,2]
[419046286,1774807847850,-2000.0,0.00015645,2]
[419046287,1774807847860,-2000.0,0.00015645,2]
[419046288,1774807847870,-2000.0,0.00015645,2]
[419046289,1774807847881,-261.27,0.00015649,2]
[419046290,1774807847891,-2424.0,0.0001565,2]
[419046291,1774807847901,-1000.0,0.00015652,2]
[419046292,1774807847911,-166.55350379,0.00015654,2]
[419046293,1774807847921,-500.0,0.00015656,2]
[419046294,1774807847931,-1000.0,0.00015656,2]
[419046295,1774807847942,-1000.0,0.00015657,2]
[419046296,1774807847953,-1096.24809732,0.00015661,2]
[419046297,1774807847964,-1000.0,0.00015669,2]
[419046298,1774807847980,-1000.0,0.00015676,2]
[419046299,1774807847991,-1000.0,0.00015692,2]
[419046300,1774807848002,-1000.0,0.00015692,2]
[419046301,1774807848012,-1100.0,0.000157,5]
[419046302,1774807848023,-300.0,0.000157,5]
[419046303,1774807848034,-150.0,0.00015702,2]
[419046304,1774807848046,-1000.0,0.00015702,2]
[419046305,1774807848059,-1000.0,0.00015716,2]
[419046306,1774807848069,-1000.0,0.00015719,2]
[419046307,1774807848080,-161.0,0.0001572,2]
[419046308,1774807848091,-1000.0,0.00015727,2]
[419046309,1774807848102,-1000.0,0.00015733,2]
[419046310,1774807848113,-2424.0,0.00015741,2]
[419046311,1774807848124,-1000.0,0.00015752,2]
[419046312,1774807848135,-2910.72,0.00015753,2]
[419046313,1774807848146,-683.0,0.00015772,2]
[419046314,1774807848157,-2424.0,0.00015774,2]
[419046315,1774807848168,-430.0,0.00015781,2]
[419046316,1774807848182,-645.0,0.00015781,2]
[419046317,1774807848193,-1000.0,0.00015783,2]
[419046318,1774807848204,-1000.0,0.00015788,2]
[419046319,1774807848215,-187.77689859,0.00015791,2]
[419046320,1774807848227,-1000.0,0.00015795,2]
[419046321,1774807848238,-683.0,0.00015796,2]
[419046322,1774807848248,-1100.0,0.000158,5]
[419046323,1774807848260,-300.0,0.000158,5]
[419046324,1774807848271,-322.357425,0.000158,2]
[419046325,1774807848282,-1000.0,0.00015807,2]
[419046326,1774807848293,-1000.0,0.00015809,2]
[419046327,1774807848304,-1000.0,0.00015809,2]
[419046328,1774807848314,-267.62,0.00015814,2]
[419046329,1774807848325,-2424.0,0.00015815,2]
[419046330,1774807848336,-1000.0,0.0001582,2]
[419046331,1774807848346,-1000.0,0.00015821,2]
[419046332,1774807848356,-2424.0,0.00015822,2]
[419046333,1774807848368,-1000.0,0.00015823,2]
[419046334,1774807848379,-1000.0,0.00015823,2]
[419046335,1774807848389,-2424.0,0.00015825,2]
[419046336,1774807848401,-1000.0,0.00015831,2]
[419046337,1774807848411,-267.62,0.00015832,2]
[419046338,1774807848421,-65223.01927979,0.0001584,2]
[419046339,1774807848432,-267.62,0.0001585,2]
[419046340,1774807848444,-150.0,0.00015855,2]
[419046341,1774807848454,-350.0,0.00015862,2]
[419046342,1774807848465,-1000.0,0.00015865,2]
[419046343,1774807848476,-1000.0,0.00015866,2]
[419046344,1774807848488,-227.70167578,0.0001587,2]
[419046345,1774807848499,-200.0,0.00015872,2]
[419046346,1774807848509,-350.0,0.00015872,2]
[419046347,1774807848520,-1000.0,0.00015879,2]
[419046348,1774807848531,-1000.0,0.00015889,2]
[419046349,1774807848542,-1000.0,0.00015889,2]
[419046350,1774807848554,-257.40227596,0.0001589,2]
[419046351,1774807848564,-2500.0,0.0001589,2]
[419046352,1774807848573,-1004.43813318,0.0001589,2]
[419046353,1774807848583,-2500.0,0.0001589,2]
[419046354,1774807848595,-500.0,0.00015899,2]
[419046355,1774807848605,-1028.23,0.00015899,2]
[419046356,1774807848615,-150.0,0.000159,2]
[419046357,1774807848626,-944.1584157,0.000159,2]
[419046358,1774807848637,-150.0,0.000159,2]
[419046359,1774807848647,-150.0,0.000159,2]
[419046360,1774807848658,-150.0,0.000159,2]
[419046361,1774807848669,-375.01701034,0.000159,2]
[419046362,1774807848679,-20210.25894818,0.000159,2]
[419046363,1774807848690,-150.0,0.000159,2]
[419046364,1774807848700,-1911.0,0.000159,5]
[419046365,1774807848712,-205174.86764607,0.000159,2]
[419046366,1774807848724,-900.0,0.000159,5]
[419046367,1774807848736,-1000.0,0.000159,2]
[419046368,1774807848747,-150.0,0.000159,2]
[419046369,1774807848757,-2366.19845948,0.000159,2]
[419046370,1774807848767,-38587.26631164,0.000159,2]
[419046371,1774807848777,-2424.0,0.00015909,2]
[419046372,1774807848787,-1000.0,0.0001591,2]
[419046373,1774807848798,-683.0,0.00015912,2]
[419046374,1774807848810,-1000.0,0.00015912,2]
[419046375,1774807848821,-1000.0,0.00015912,2]
[419046376,1774807848832,-1000.0,0.00015914,2]
[419046377,1774807848843,-2424.0,0.00015915,2]
[419046378,1774807848854,-1000.0,0.00015933,2]
[419046379,1774807848864,-2424.0,0.00015936,2]
[419046380,1774807848874,-2424.0,0.00015949,2]
[419046381,1774807848885,-3835.20744626,0.0001596,2]
[419046382,1774807848896,-1000.0,0.00015966,2]
[419046383,1774807848907,-501.0,0.00015973,2]
[419046384,1774807848916,-1000.0,0.00015975,2]
[419046385,1774807848926,-500.0,0.00015987,2]
[419046386,1774807848936,-500.0,0.00015987,2]
[419046387,1774807848947,-500.0,0.00015987,2]
[419046388,1774807848957,-330.76422672,0.00015987,2]
[419046389,1774807848968,-1028.23,0.00015987,2]
[419046390,1774807848978,-1028.23,0.00015987,2]
[419046391,1774807848988,-1028.23,0.00015987,2]
[419046392,1774807848998,-1028.23,0.00015987,2]
[419046393,1774807849008,-1028.23,0.00015987,2]
[419046394,1774807849017,-1000.0,0.00015989,2]
[419046395,1774807849028,-187.44575692,0.0001599,2]
[419046396,1774807849037,-1000.0,0.00015994,2]
[419046397,1774807849047,-16206.2652781,0.00015995,2]
[419046398,1774807849059,-321.15195785,0.00015996,2]
[419046399,1774807849069,-173.174268,0.00015997,2]
[419046400,1774807849080,-666.0,0.00015999,2]
[419046401,1774807849090,-666.0,0.00015999,2]
[419046402,1774807849100,-666.0,0.00015999,2]
[419046403,1774807849110,-500.0,0.00015999,2]
[419046404,1774807849120,-500.0,0.00015999,2]
[419046405,1774807849130,-500.0,0.00015999,2]
[419046406,1774807849139,-500.0,0.00015999,2]
[419046407,1774807849149,-500.0,0.00015999,2]
[419046408,1774807849171,-269.33966266,0.00015999,2]
[419046409,1774807849181,-2319673.45933205,0.00016,2]
[419046410,1774807851570,-29096.92562771,0.00013462,2]
[419046411,1774807851579,-415.0,0.00014736,2]
[419046412,1774807851590,-29600.56673603,0.00016,2]
[419046413,1774807851601,-663.92,0.00016,2]
[419046414,1774807892109,4662.044,0.00010318,2]
[419046415,1774807892210,294.76,0.00010318,2]
[419046416,1774807915630,-178.327297,0.00010526,2]
[419046417,1774807915656,-1080.18049598,0.00010528,3]
[419046418,1774807915686,-1500000.0,0.00010529,2]
[419046419,1774807915712,-208.7575855,0.00010629,2]
[419046420,1774807920653,678.68,0.00010269,2]
[419046421,1774807981425,1226.85,9.878e-05,2]
[419046422,1774807981931,2620.0,0.00010314,2]
[419046423,1774807982436,517.676,0.00010436,2]
[419046424,1774807982461,1882.324,0.00010436,2]
[419046425,1774808024124,-1751.82507383,0.00010526,2]
[419046426,1774808024149,-11406.66940068,0.00010526,2]
[419046427,1774808024172,-1103.7299612,0.00010526,2]
[419046428,1774808024198,-375.01701036,0.00010529,2]
[419046429,1774808024224,-1485362.75855393,0.00010529,2]
[419046430,1774808038659,-200.0,0.00010528,2]
[419046431,1774808046836,1550.0,0.00010188,2]
[419046432,1774808048900,1240.0,0.00010318,2]
[419046433,1774808048973,780.0,0.00010317,2]
[419046434,1774808049052,800.0,0.00010496,2]
[419046435,1774808049178,165.69,8.842e-05,2]
[419046436,1774808077115,10096.7,0.0001049,2]
[419046437,1774808089668,1026.21607008,0.00010429,2]
[419046438,1774808119017,210.24,0.00010265,2]
[419046439,1774808201498,151.77047277,0.000104,2]
[419046440,1774808227980,227.02109222,0.00010429,2]
[419046441,1774808304118,166.66,0.00010254,2]
[419046442,1774808370616,158.77,5.051e-05,2]
[419046443,1774808370815,158.77,0.00010102,2]
[419046444,1774808385950,58764.51,0.00010102,2]
[419046445,1774808410063,1194.68651898,0.00010429,2]
[419046446,1774808410390,454.9778,0.00010493,2]
[419046447,1774808411087,154.0,0.00010102,3]
[419046448,1774808561531,4552.89,9.748e-05,2]
[419046449,1774808611918,2000.0,9.748e-05,2]
[419046450,1774808620211,569.48,9.747e-05,2]
[419046451,1774808657129,1500000.0,0.00010426,2]
[419046452,1774808672182,1500.0,9.747e-05,2]
[419046453,1774808693231,1000.0,0.00017,60]
[419046454,1774808702822,1000.0,0.00017,60]
[419046455,1774808712810,1000.0,0.00017,60]
[419046456,1774808714160,33006.8599,0.00010429,2]
[419046457,1774808724630,180.0,0.00017,60]
[419046458,1774808748634,368.55,9.747e-05,2]
[419046459,1774808794162,2500.0,0.00010429,2]
[419046460,1774808823609,103298.71907948,0.00010423,2]
[419046461,1774808837015,-7857.05268643,0.00010423,2]
[419046462,1774808837089,-10000.01,0.00010423,2]
[419046463,1774808837207,-10000.01,0.00010423,2]
[419046464,1774808837311,-10000.01,0.00010423,2]
[419046465,1774808837416,-10000.01,0.00010423,2]
[419046466,1774808837535,-10000.01,0.00010423,2]
[419046467,1774808837652,-10000.01,0.00010423,2]
[419046468,1774808837771,-10000.01,0.00010423,2]
[419046469,1774808839777,-10000.01,0.00010423,2]
[419046470,1774808839997,-10000.01,0.00010423,2]
[419046471,1774808845662,-10000.01,0.00010423,2]
[419046472,1774808845840,-10000.01,0.00010423,2]
[419046473,1774808845944,-10000.01,0.00010423,2]
[419046474,1774808846043,-10000.01,0.00010423,2]
[419046475,1774808846208,-10000.01,0.00010423,2]
[419046476,1774808849206,-10000.01,0.00010423,2]
[419046477,1774808849225,-10000.01,0.00010423,2]
[419046478,1774808860623,-10000.01,0.00010423,2]
[419046479,1774808860726,-10000.01,0.00010423,2]
[419046480,1774808860876,-10000.01,0.00010423,2]
[419046481,1774808860991,-10000.01,0.00010423,2]
[419046482,1774808861096,-10000.01,0.00010423,2]
[419046483,1774808866679,-10000.01,0.00010423,2]
[419046484,1774808866777,-10000.01,0.00010423,2]
[419046485,1774808866873,-10000.01,0.00010423,2]
[419046486,1774808866979,-10000.01,0.00010423,2]
[419046487,1774808869767,-10000.01,0.00010423,2]
[419046488,1774808877293,-10000.01,0.00010423,2]
[419046489,1774808877306,-10000.01,0.00010423,2]
[419046490,1774808877320,-10000.01,0.00010423,2]
[419046491,1774808878771,-10000.01,0.00010423,2]
[419046492,1774808884808,-10000.01,0.00010423,2]
[419046493,1774808885101,-10000.01,0.00010423,2]
[419046494,1774808885226,-10000.01,0.00010423,2]
[419046495,1774808885846,-10000.01,0.00010423,2]
[419046496,1774808895740,307.0,9.989e-05,2]
[419046497,1774808896026,307.0,9.989e-05,2]
[419046498,1774808896333,307.0,9.989e-05,2]
[419046499,1774808896628,307.0,9.989e-05,2]
[419046500,1774808896918,307.0,9.989e-05,2]
[419046501,1774808897221,307.0,9.989e-05,2]
[419046502,1774808897523,307.0,9.989e-05,2]
[419046503,1774808897795,307.0,9.989e-05,2]
[419046504,1774808898087,307.0,9.989e-05,2]
[419046505,1774808909434,425.03237699,0.0001,2]
[419046506,1774808914822,2404.08,9.758e-05,2]
[419046507,1774808915335,3364.83,9.864e-05,2]
[419046508,1774808915854,2990.0,9.972e-05,2]
[419046509,1774808926251,338.0,0.00010089,2]
[419046510,1774808932210,200.0,0.000101,2]
[419046511,1774808939434,327.66539516,0.0001,2]
[419046512,1774808947356,174.0,0.000101,3]
[419046513,1774808948963,165.0,0.000101,3]
[419046514,1774808994395,2380.0,9.268e-05,2]
[419046515,1774808994887,2910.0,9.47e-05,2]
[419046516,1774808995553,2376.33,9.766e-05,2]
[419046517,1774808996107,2900.0,0.00010013,2]
[419046518,1774809007787,158.0,0.00010013,3]
[419046519,1774809008053,4044.584254,7.945e-05,2]
[419046520,1774809009051,165.0,0.00010013,3]
[419046521,1774809031449,172.40199717,0.00010191,30]
[419046522,1774809031477,101.1383089,0.00010191,30]
[419046523,1774809031597,-263.0,0.00010191,2]
[419046524,1774809031608,-53334.5028,0.00010191,2]
[419046525,1774809031618,-250.0,0.00010191,2]
[419046526,1774809031628,-2736.52,0.00010191,2]
[419046527,1774809031639,-150.0,0.00010191,2]
[419046528,1774809031649,-2050.0,0.00010198,2]
[419046529,1774809031659,-250.0,0.00010212,2]
[419046530,1774809031669,-2741.0,0.0001023,2]
[419046531,1774809031679,-1200.0,0.00010251,2]
[419046532,1774809031690,-2230.0,0.00010252,2]
[419046533,1774809031700,-300.0,0.00010314,2]
[419046534,1774809031710,-300.0,0.00010315,2]
[419046535,1774809031720,-300.0,0.00010315,2]
[419046536,1774809031730,-300.0,0.00010315,2]
[419046537,1774809031740,-1200.0,0.00010316,2]
[419046538,1774809031750,-2500.0,0.00010317,2]
[419046539,1774809031760,-150.0,0.00010322,2]
[419046540,1774809031770,-83570.742,0.00010323,2]
[419046541,1774809031785,-2500.0,0.00010323,2]
[419046542,1774809031795,-338.0,0.00010391,2]
[419046543,1774809031806,-500.0,0.00010422,2]
[419046544,1774809031816,-500.0,0.00010422,2]
[419046545,1774809031827,-500.0,0.00010422,2]
[419046546,1774809031838,-427.49709853,0.00010422,2]
[419046547,1774809031848,-500.0,0.00010422,2]
[419046548,1774809031859,-500.0,0.00010422,2]
[419046549,1774809031869,-424.61345375,0.00010422,2]
[419046550,1774809031879,-500.0,0.00010422,2]
[419046551,1774809031890,-500.0,0.00010422,2]
[419046552,1774809031900,-500.0,0.00010422,2]
[419046553,1774809031911,-384.6263432,0.00010422,2]
[419046554,1774809031921,-500.0,0.00010422,2]
[419046555,1774809031932,-392.38607579,0.00010422,2]
[419046556,1774809031942,-500.0,0.00010422,2]
[419046557,1774809031952,-500.0,0.00010422,2]
[419046558,1774809031962,-338.15174333,0.00010422,2]
[419046559,1774809031972,-500.0,0.00010422,2]
[419046560,1774809031983,-500.0,0.00010422,2]
[419046561,1774809031993,-500.0,0.00010422,2]
[419046562,1774809032003,-500.0,0.00010422,2]
[419046563,1774809032014,-500.0,0.00010422,2]
[419046564,1774809032024,-500.0,0.00010422,2]
[419046565,1774809032034,-500.0,0.00010422,2]
[419046566,1774809032044,-500.0,0.00010422,2]
[419046567,1774809032054,-500.0,0.00010422,2]
[419046568,1774809032064,-500.0,0.00010422,2]
[419046569,1774809032074,-193.54401913,0.00010422,2]
[419046570,1774809032084,-500.0,0.00010422,2]
[419046571,1774809032095,-500.0,0.00010422,2]
[419046572,1774809032106,-429.30919449,0.00010422,2]
[419046573,1774809032116,-500.0,0.00010422,2]
[419046574,1774809032126,-500.0,0.00010422,2]
[419046575,1774809032136,-500.0,0.00010422,2]
[419046576,1774809032146,-366.52834994,0.00010422,2]
[419046577,1774809032156,-500.0,0.00010422,2]
[419046578,1774809032166,-500.0,0.00010422,2]
[419046579,1774809032175,-500.0,0.00010422,2]
[419046580,1774809032185,-500.0,0.00010422,2]
[419046581,1774809032195,-500.0,0.00010422,2]
[419046582,1774809032205,-500.0,0.00010422,2]
[419046583,1774809032216,-537.54747196,0.00010422,2]
[419046584,1774809032226,-500.0,0.00010422,2]
[419046585,1774809032236,-500.0,0.00010422,2]
[419046586,1774809032247,-500.0,0.00010422,2]
[419046587,1774809032256,-500.0,0.00010422,2]
[419046588,1774809032266,-500.0,0.00010422,2]
[419046589,1774809032277,-500.0,0.00010422,2]
[419046590,1774809032286,-500.0,0.00010422,2]
[419046591,1774809032297,-500.0,0.00010422,2]
[419046592,1774809032307,-500.0,0.00010422,2]
[419046593,1774809032317,-500.0,0.00010422,2]
[419046594,1774809032327,-500.0,0.00010422,2]
[419046595,1774809032341,-500.0,0.00010422,2]
[419046596,1774809032351,-500.0,0.00010422,2]
[419046597,1774809032361,-500.0,0.00010422,2]
[419046598,1774809032371,-500.0,0.00010422,2]
[419046599,1774809032381,-500.0,0.00010422,2]
[419046600,1774809032391,-500.0,0.00010422,2]
[419046601,1774809032400,-500.0,0.00010422,2]
[419046602,1774809032410,-500.0,0.00010422,2]
[419046603,1774809032420,-500.0,0.00010422,2]
[419046604,1774809032429,-500.0,0.00010422,2]
[419046605,1774809032440,-500.0,0.00010422,2]
[419046606,1774809032450,-500.0,0.00010422,2]
[419046607,1774809032460,-500.0,0.00010422,2]
[419046608,1774809032470,-500.0,0.00010422,2]
[419046609,1774809032481,-500.0,0.00010422,2]
[419046610,1774809032491,-500.0,0.00010422,2]
[419046611,1774809032501,-500.0,0.00010422,2]
[419046612,1774809032511,-240.17484537,0.00010422,2]
[419046613,1774809032521,-500.0,0.00010422,2]
[419046614,1774809032531,-500.0,0.00010422,2]
[419046615,1774809032542,-500.0,0.00010422,2]
[419046616,1774809032552,-500.0,0.00010422,2]
[419046617,1774809032563,-500.0,0.00010422,2]
[419046618,1774809032573,-500.0,0.00010422,2]
[419046619,1774809032583,-500.0,0.00010422,2]
[419046620,1774809032593,-500.0,0.00010422,2]
[419046621,1774809032603,-500.0,0.00010422,2]
[419046622,1774809032613,-500.0,0.00010422,2]
[419046623,1774809032623,-482.81951842,0.00010422,2]
[419046624,1774809032633,-500.0,0.00010422,2]
[419046625,1774809032643,-500.0,0.00010422,2]
[419046626,1774809032653,-500.0,0.00010422,2]
[419046627,1774809032663,-500.0,0.00010422,2]
[419046628,1774809032673,-500.0,0.00010422,2]
[419046629,1774809032682,-2089.00226098,0.00010422,2]
[419046630,1774809032692,-2089.00226098,0.00010422,2]
[419046631,1774809032703,-2089.00226098,0.00010422,2]
[419046632,1774809032712,-2089.00226098,0.00010422,2]
[419046633,1774809032723,-2089.00226098,0.00010422,2]
[419046634,1774809032733,-2089.00226098,0.00010422,2]
[419046635,1774809032743,-2089.00226098,0.00010422,2]
[419046636,1774809032753,-2089.00226098,0.00010422,2]
[419046637,1774809032763,-2089.00226098,0.00010422,2]
[419046638,1774809032773,-2089.00226098,0.00010422,2]
[419046639,1774809032783,-2089.00226098,0.00010422,2]
[419046640,1774809032793,-2089.00226098,0.00010422,2]
[419046641,1774809032802,-2089.00226098,0.00010422,2]
[419046642,1774809032812,-2089.00226098,0.00010422,2]
[419046643,1774809032823,-2089.00226098,0.00010422,2]
[419046644,1774809032834,-2089.00226098,0.00010422,2]
[419046645,1774809032844,-2089.00226098,0.00010422,2]
[419046646,1774809032855,-2089.00226098,0.00010422,2]
[419046647,1774809032866,-2089.00226098,0.00010422,2]
[419046648,1774809032876,-2089.00226098,0.00010422,2]
[419046649,1774809032886,-2089.00226098,0.00010422,2]
[419046650,1774809032896,-2089.00226098,0.00010422,2]
[419046651,1774809032906,-2089.00226098,0.00010422,2]
[419046652,1774809032916,-2089.00226098,0.00010422,2]
[419046653,1774809032926,-2089.00226098,0.00010422,2]
[419046654,1774809032936,-2089.00226098,0.00010422,2]
[419046655,1774809032947,-2089.00226098,0.00010422,2]
[419046656,1774809032956,-2089.00226098,0.00010422,2]
[419046657,1774809032966,-2089.00226098,0.00010422,2]
[419046658,1774809032976,-2089.00226098,0.00010422,2]
[419046659,1774809032987,-2089.00226098,0.00010422,2]
[419046660,1774809032998,-2089.00226098,0.00010422,2]
[419046661,1774809033008,-2089.00226098,0.00010422,2]
[419046662,1774809033019,-2189.00226098,0.00010422,2]
[419046663,1774809033031,-2189.00226098,0.00010422,2]
[419046664,1774809033040,-2189.00226098,0.00010422,2]
[419046665,1774809033051,-2189.00226098,0.00010422,2]
[419046666,1774809033060,-2189.00226098,0.00010422,2]
[419046667,1774809033070,-1048843.88823409,0.00010423,2]
[419046668,1774809033080,-10744.8235,0.00010426,2]
[419046669,1774809033090,-2203.91,0.00010443,2]
[419046670,1774809033100,-1762.95,0.00010444,2]
[419046671,1774809033110,-5000.0,0.00010518,2]